[Event "SixDays Budapest March GM A 2025"]
[Site "Budapest"]
[Date "2025.03.24"]
[Round "1.1"]
[White "Pap, Misa"]
[Black "Moldagali, Beksultan"]
[Result "0-1"]
[Annotator "TA"]
[ECO "B01"]
[WhiteElo "2457"]
[BlackElo "2398"]
[PlyCount "112"]
[EventDate "2025.03.23"]
[EventCountry "HUN"]
[SourceTitle "playchess.com"]
[Source "ChessBase"]
[SourceQuality "1"]
[TimeControl "5400+30"]

{[%evp 11,111,65,60,30,60,21,35,25,32,1,4,21,-4,-15,118,87,111,103,135,129,204,162,143,65,81,91,92,106,90,87,76,79,79,53,173,172,191,200,196,189,175,180,184,192,194,174,183,178,246,267,297,275,307,329,335,331,352,349,360,325,378,320,483,455,472,465,471,452,456,485,481,480,480,457,478,478,471,449,433,444,476,465,869,579,598,556,510,380,379,372,330,224,224,206,192,179,228,0,0,6,0,-29999]} 1. e4 {[%emt 0:01:42]} d5 {[%emt 0:00:06]} 2. exd5 {[%emt 0:00:30]} Qxd5 {[%emt 0:00:06]} 3. Nc3 {[%emt 0:00:15]} Qa5 {[%emt 0:00:06]} 4. d4 {[%emt 0:00:34]} Nf6 {[%emt 0:00:11]} 5. Nf3 {[%emt 0:00:12]} Bf5 {[%emt 0:00:09]} 6. Bc4 {[%emt 0:01:05]} e6 {[%emt 0:00:14]} 7. Bd2 {[%emt 0:01:38][%cal Oc3d5,Bc1d2,Bd2c3,Bc3b4][%mdl 32] B01: Scandinavian Defence.} Bb4 $1 {[%emt 0:00:20][%mdl 4] outshines the older 7...c6.} 8. a3 {[%emt 0:00:15]} Bxc3 {[%emt 0:00:06]} 9. Bxc3 {[%emt 0:00:03] White is slightly better.} Qb6 {[%emt 0:00:09]} 10. Qe2 {[%emt 0:01:10]} O-O {[%emt 0:00:16]} 11. O-O-O {[%emt 0:01:37]} Nc6 {[%emt 0:01:42] Against Bb4} 12. Rhg1 {[%emt 0:02:29][%cal Og2g4]} (12. Ne5 {with more complications.} Nd5 13. Nd7 Nxc3 14. bxc3 Qa5 15. Nxf8 Qxa3+ 16. Kd2) 12... Na5 $146 {[%emt 0:15:13]} (12... Ne4 $11 {remains equal.}) ({Predecessor:} 12... Bg4 13. h3 Bxf3 14. gxf3 Nd5 15. Bd2 Nxd4 16. Qe4 Kh8 17. c3 Nb3+ 18. Bxb3 Qxb3 {½-½ L'Ami,E (2645)-Pruijssers,R (2523) NED-ch KO Utrecht 2023 (2.1)}) 13. Ba2 {[%emt 0:11:20][%cal Og2g4]} Be4 {[%emt 0:07:53]} 14. Bb4 $1 {[%emt 0:05:44]} Rfc8 {[%emt 0:06:47]} 15. Ne5 {[%emt 0:08:14]} c5 {[%emt 0:17:03]} 16. dxc5 $18 {[%emt 0:04:08]} (16. Bxc5 $6 Qc7 $16) 16... Qc7 {[%emt 0:00:09]} 17. f4 {[%emt 0:04:23]} (17. Rd6 $1 $16 {[%cal Oe5f7] Black must now prevent Nxf7!.} Bd5 18. Bxd5 exd5 19. Bxa5 Qxa5 20. Re1) 17... Nc6 $14 {[%emt 0:08:22]} 18. Bc3 {[%emt 0:25:27][%cal Oe5f7]} Bd5 {[%emt 0:07:57]} 19. Nxc6 $1 {[%emt 0:02:44]} Bxa2 {[%emt 0:00:23] Black is weak on the dark squares} 20. Bxf6 $1 {[%emt 0:06:18][%cal Oe2g4]} Qxf4+ {[%emt 0:00:20]} 21. Rd2 $1 {[%emt 0:00:27]} Rxc6 {[%emt 0:02:38]} 22. Bd4 {[%emt 0:04:19]} Bd5 {[%emt 0:08:26] [#]} (22... e5 $1 $14 23. Bxe5 Qg5) 23. c4 $1 $40 {[%emt 0:01:35][%mdl 128] White goes for the king.} Bxc4 {[%emt 0:01:12]} (23... Be4 24. Rf1 Qh4 25. Bf2 $18) 24. Qxc4 {[%emt 0:00:16]} e5 {[%emt 0:00:01]} 25. Rf1 {[%emt 0:04:54]} Rxc5 {[%emt 0:00:03]} 26. Qxc5 {[%emt 0:00:04]} (26. Rxf4 $2 Rxc4+ 27. Kb1 exf4 $19) 26... Qxf1+ {[%emt 0:00:08]} 27. Rd1 {[%emt 0:00:02]} Qf4+ {[%emt 0:01:46]} 28. Be3 {[%emt 0:00:04]} Qe4 {[%emt 0:01:08]} 29. Rd2 {[%emt 0:02:40]} Qf5 {[%emt 0:08:54]} (29... h6 $142 30. Qc3 Kh7) 30. Qc2 {[%emt 0:00:20]} Qg4 {[%emt 0:00:59]} 31. h3 {[%emt 0:00:52]} Qg3 {[%emt 0:01:01] [#]} 32. Bxa7 $1 {[%mdl 512]} Re8 {[%emt 0:03:30]} (32... Qg5 33. Kb1) 33. Kb1 {[%emt 0:02:55]} h6 {[%emt 0:00:52]} 34. Qe4 {[%emt 0:00:46]} b5 {[%emt 0:02:20]} 35. Rd3 {[%emt 0:01:34]} Qh2 {[%emt 0:00:29]} 36. Bb6 {[%emt 0:01:37]} b4 {[%emt 0:02:00]} (36... Qf4 $142 37. Qxf4 exf4) 37. a4 {[%emt 0:00:17]} (37. Qxb4 Qxg2 38. Ka2 Qg6 $18) 37... f5 {[%emt 0:02:40]} 38. Qc6 {[%emt 0:00:24]} (38. Qxb4 Qxg2 39. Qb5 Re7 $18) 38... Rf8 {[%emt 0:00:47]} 39. Bc5 {[%emt 0:01:35]} Rf6 {[%emt 0:01:35]} 40. Rd8+ {[%emt 0:00:20]} Kh7 {[%emt 0:00:15]} 41. Qd5 {[%emt 0:00:06]} b3 {[%emt 0:01:13]} 42. Qxb3 {[%emt 0:00:21]} (42. Qg8+ Kg6 43. Rd1 (43. Qxb3 Qxg2 44. Qd5 e4 $18) (43. Qe8+ Kh7 $18) 43... Rf7 $18) 42... Qxg2 {[%emt 0:00:11]} 43. Qg8+ {[%emt 0:01:10]} Kg6 {[%emt 0:00:02]} 44. Qe8+ {[%emt 0:01:49]} Kh7 {[%emt 0:00:01]} 45. Qxe5 {[%emt 0:00:39]} f4 {[%emt 0:00:52]} 46. Qd5 {[%emt 0:00:47]} f3 {[%emt 0:01:31]} (46... Qxd5 $142 47. Rxd5 Ra6) 47. Bd4 {[%emt 0:01:06]} Qg6+ {[%emt 0:01:10]} 48. Ka1 {[%emt 0:02:15]} Rf7 {[%emt 0:00:29]} 49. Qa8 {[%emt 0:00:50][%csl Ga8][%cal Rd8h8]} Qc2 {[%emt 0:00:41]} 50. Rh8+ {[%emt 0:00:16]} Kg6 {[%emt 0:00:01]} 51. Qa6+ {[%emt 0:00:09]} Kh5 {[%emt 0:00:25] And now ...Qd1+ would win.} 52. Qb5+ {[%emt 0:00:23]} Rf5 {[%emt 0:01:03]} 53. Qe8+ {[%emt 0:00:05]} Kh4 {[%emt 0:00:32] [#]} 54. Qe1+ {[%emt 0:01:45]} (54. Bxg7 Qd1+ 55. Ka2 Rf4 56. Qe7+ (56. Bxh6 $2 {perishes.} Rxa4+ $19) (56. Rxh6+ Kg3 $11) 56... Kg3 $11) ({White must play} 54. Bf2+ $1 $18 Kxh3 (54... Qxf2 $2 55. Qe4+ Kg3 56. Qg4+ Kh2 57. Qxf5 $18) 55. Qe1 Qxa4+ 56. Kb1) 54... f2 $1 $11 {[%emt 0:00:18] Really sharp!} 55. Bxf2+ {[%emt 0:00:03]} Rxf2 {[%emt 0:00:05]} 56. Ra8 $2 {[%emt 0:00:39][%mdl 8192]} (56. Qb4+ $11 Kxh3 57. Ka2) 56... Qxb2# {[%emt 0:00:06] Weighted Error Value: White=0.38/Black=0.33  Loses game:     	White=1     	---        Missed win:     	White=1     	---        Mistake:       	White=1     	Black=6      Inaccurate:     	White=4     	Black=2      OK:         	White=17    	Black=23     Best:        	White=4     	Black=7      Strong:       	White=5     	Black=1} 0-1

[Event "SixDays Budapest March GM A 2025"]
[Site "Budapest"]
[Date "2025.03.24"]
[Round "1.2"]
[White "Uskov, Artem"]
[Black "Rohrer, Christophe"]
[Result "1-0"]
[Annotator "TA"]
[ECO "C74"]
[WhiteElo "2461"]
[BlackElo "2266"]
[PlyCount "83"]
[EventDate "2025.03.23"]
[EventCountry "HUN"]
[SourceTitle "playchess.com"]
[Source "ChessBase"]
[SourceQuality "1"]
[TimeControl "5400+30"]

{[%evp 9,83,27,47,43,52,48,50,39,66,75,66,61,88,88,89,72,112,110,112,82,108,95,139,128,141,116,111,91,114,113,97,91,162,164,185,188,178,176,164,174,231,226,212,231,221,221,271,252,485,516,509,497,521,497,665,633,794,794,715,791,927,910,1039,951,1461,1441,1301,1437,6528,6435,6528,5956,29977,29978,29995,29996]} 1. e4 {[%emt 0:00:36]} e5 {[%emt 0:00:09]} 2. Nf3 {[%emt 0:00:04]} Nc6 {[%emt 0:00:06]} 3. Bb5 {[%emt 0:00:05]} a6 {[%emt 0:00:12]} 4. Ba4 {[%emt 0:00:05]} d6 {[%emt 0:00:11]} 5. c3 {[%emt 0:00:08]} Bg4 {[%emt 0:00:33]} 6. h3 {[%emt 0:00:04] C74: Ruy Lopez: Deferred Steinitz: 5 c3 f5.} Bh5 {[%emt 0:00:25]} 7. d4 {[%emt 0:00:07][%cal Bd2d4,Bd4d5][%mdl 32]} b5 {[%emt 0:02:21]} 8. Bc2 {[%emt 0:00:06] White is slightly better.} Nf6 {[%emt 0:02:12]} 9. d5 {[%emt 0:00:30]} Nb8 {[%emt 0:06:59]} 10. a4 {[%emt 0:00:38]} c6 $146 {[%emt 0:02:16]} (10... Nbd7 11. axb5 axb5 12. Rxa8 Qxa8 13. Qe2 Qb7 14. g4 Bg6 15. Nh4 Be7 16. Nxg6 hxg6 {½-½ Smolovic,M (2298)-Bukvic,M (2119) Belgrade Trophy 30th 2016 (4)}) 11. axb5 {[%emt 0:32:12]} cxb5 {[%emt 0:01:08]} 12. Qe2 {[%emt 0:01:57]} Bxf3 {[%emt 0:06:49]} 13. Qxf3 {[%emt 0:00:39]} Nbd7 {[%emt 0:07:55]} 14. g4 {[%emt 0:06:11][%cal Bg2g4,Bg4g5][%mdl 32]} g6 {[%emt 0:02:32] White has space advantage and is better} 15. h4 {[%emt 0:00:24]} h5 {[%emt 0:07:25]} 16. g5 {[%emt 0:00:06]} Nh7 {[%emt 0:00:40]} 17. Qg3 {[%emt 0:10:10] White is more active.} Bg7 {[%emt 0:02:06]} 18. Nd2 {[%emt 0:03:13]} O-O {[%emt 0:02:35]} 19. Nb3 {[%emt 0:00:30]} a5 {[%emt 0:01:47][%cal Ba6a5,Ba5a4][%mdl 32]} 20. Bd3 {[%emt 0:00:28]} Qb6 {[%emt 0:08:09]} (20... b4 $16) 21. Be3 $18 {[%emt 0:00:31]} Nc5 {[%emt 0:02:17]} 22. Nxc5 {[%emt 0:00:34]} dxc5 {[%emt 0:00:06]} 23. O-O {[%emt 0:00:09][%cal Ob2b4] Threatens to win with b4!.} a4 {[%emt 0:02:15]} 24. Rfb1 {[%emt 0:01:15]} Rfe8 {[%emt 0:09:12]} (24... b4 $142 25. cxb4 Qxb4) 25. b4 {[%emt 0:00:46]} axb3 {[%emt 0:00:20]} 26. Rxa8 {[%emt 0:00:05]} Rxa8 {[%emt 0:00:05][%cal Be8a8,Ba8a5,Ba5a1][%mdl 32]} 27. Rxb3 {[%emt 0:00:03]} Ra5 {[%emt 0:07:28]} 28. Qh3 {[%emt 0:01:07]} Nf8 $2 {[%emt 0:03:13]} (28... Ra1+ 29. Kh2 Bf8 30. Bxb5 (30. Rxb5 Qc7 $16)) (28... Qa6 {was called for.}) 29. Qc8 {[%emt 0:00:42]} Ra1+ {[%emt 0:00:29]} 30. Kg2 {[%emt 0:00:19]} Qa5 {[%emt 0:00:42] [#] and ...c4 would now be decisive} 31. Qxc5 {[%emt 0:00:47]} (31. Rxb5 Qxc3 32. Bb1 (32. Rxc5 $2 Qxd3 33. Rc1 Qxe4+ 34. Kg1 Rxc1+ 35. Bxc1 Qxd5 $19) 32... Qe1 $11) 31... f5 {[%emt 0:01:59]} 32. exf5 {[%emt 0:01:28]} gxf5 {[%emt 0:01:01]} 33. Bxf5 {[%emt 0:00:27] A strong pair of Bishops.} Qa4 {[%emt 0:01:03]} 34. Qb4 {[%emt 0:00:15]} ({Not} 34. Rxb5 Qd1 35. f3 Qh1+ 36. Kg3 e4 $11) 34... Qa2 {[%emt 0:00:15]} 35. Qxb5 {[%emt 0:01:34]} Re1 {[%emt 0:00:50]} 36. Rb2 {[%emt 0:00:08]} ({Less strong is} 36. c4 Qe2 37. c5 Qd1 $11) 36... Qa1 {[%emt 0:01:00]} 37. Rb1 {[%emt 0:00:07]} Rxb1 {[%emt 0:00:21]} 38. Qxb1 {[%emt 0:00:07]} Qxc3 {[%emt 0:00:05]} 39. Qd1 {[%emt 0:01:54]} Qc4 {[%emt 0:01:24]} 40. d6 {[%emt 0:00:06] [#] d7 would kill now.} Qc6+ {[%emt 0:00:15]} 41. Kg1 {[%emt 0:00:16]} Nd7 {[%emt 0:00:17]} 42. Be6+ {[%emt 0:00:08] Weighted Error Value: White=0.09 (flawless) /Black=0.87  Mistake:       	---       	Black=3      Inaccurate:     	---       	Black=5      OK:         	White=14    	Black=10     Best:        	White=3     	Black=1} 1-0

[Event "SixDays Budapest March GM A 2025"]
[Site "Budapest"]
[Date "2025.03.24"]
[Round "1.3"]
[White "Jake Shanty"]
[Black "Ostrovskiy, Aleksandr"]
[Result "0-1"]
[Annotator "TA"]
[ECO "D37"]
[WhiteElo "2336"]
[BlackElo "2394"]
[PlyCount "66"]
[EventDate "2025.03.23"]
[EventCountry "HUN"]
[SourceTitle "playchess.com"]
[Source "ChessBase"]
[SourceQuality "1"]
[TimeControl "5400+30"]

{[%evp 10,66,-14,-8,-5,-22,-8,-12,-21,-29,-32,-37,-37,-23,-31,-32,-30,-36,-22,-27,-34,-30,-28,-70,-74,-72,-74,-66,-66,-75,-72,-72,-67,-149,-149,-193,-184,-196,-204,-261,-247,-294,-280,-318,-306,-380,-390,-387,-354,-447,-462,-447,-432,-534,-525,-814,-802,-720,-715]} 1. d4 {[%emt 0:00:05]} d5 {[%emt 0:00:08][%cal Bd7d5,Bd5c4][%mdl 32]} 2. Nf3 {[%emt 0:00:14]} Nf6 {[%emt 0:00:18]} 3. c4 {[%emt 0:00:17]} e6 {[%emt 0:00:14]} 4. Nc3 {[%emt 0:00:22]} dxc4 {[%emt 0:01:13]} 5. Bg5 {[%emt 0:02:15]} a6 {[%emt 0:01:25]} 6. a4 {[%emt 0:13:12]} Nc6 {[%emt 0:01:52][%cal Bb8c6,Bc6a5,Ba5c4,Bc4e3,Be3c2][%mdl 32] D24: Queen's Gambit Accepted: 3 Nf3 Nf6 4 Nc3.} 7. e3 {[%emt 0:10:22]} Na5 {[%emt 0:01:02]} 8. Ne5 {[%emt 0:06:58] The old main line.} Bb4 {[%emt 0:01:20] The position is equal.} 9. Nxc4 {[%emt 0:01:46]} Qd5 {[%emt 0:02:22]} 10. Bxf6 {[%emt 0:15:06]} Nxc4 {[%emt 0:00:53]} 11. Qb3 {[%emt 0:20:33]} Nxe3 {[%emt 0:06:26]} 12. Qxb4 {[%emt 0:01:27][%csl Gf6][%cal Rb4e7]} Nc2+ {[%emt 0:00:11]} 13. Kd2 {[%emt 0:00:16]} Nxb4 {[%emt 0:00:57]} 14. Nxd5 {[%emt 0:00:07]} Nxd5 {[%emt 0:00:32]} 15. Bxg7 {[%emt 0:00:08]} Rg8 {[%emt 0:00:06]} 16. Be5 {[%emt 0:00:16]} f6 {[%emt 0:06:54]} 17. Bg3 {[%emt 0:00:27]} Rg4 {[%emt 0:00:30]} 18. f4 $146 {[%emt 0:17:48]} (18. Kd3 c5 19. dxc5 e5 20. Kd2 Bf5 21. Be2 Rd4+ 22. Ke1 Nb4 23. Rd1 {0-1 Malbasic,L (1858)-Lendero,L (2243) SLO DP-F23 email 2019}) 18... Nxf4 {[%emt 0:15:23] Black is more active.} 19. Bxf4 {[%emt 0:03:31]} Rxf4 {[%emt 0:00:02]} 20. Ke3 {[%emt 0:00:09]} Rg4 {[%emt 0:03:49]} 21. Be2 {[%emt 0:04:34]} ({White should try} 21. Rc1 $15) 21... Rxg2 $17 {[%emt 0:04:47]} 22. Raf1 {[%emt 0:00:29]} Ke7 {[%emt 0:05:15]} 23. Rfg1 {[%emt 0:00:51]} Rg6 {[%emt 0:08:27]} 24. Bd3 {[%emt 0:00:43] [#]} f5 $1 {[%emt 0:00:11]} 25. h4 {[%emt 0:00:26]} Bd7 {[%emt 0:00:42]} 26. h5 {[%emt 0:00:21]} Rgg8 {[%emt 0:00:40]} 27. a5 {[%emt 0:00:31]} Bc6 {[%emt 0:00:54]} 28. Rxg8 {[%emt 0:00:22]} Rxg8 $19 {[%emt 0:00:04] KRB-KRB. Black is two pawns up.} 29. Rc1 {[%emt 0:00:07]} Rg3+ {[%emt 0:01:01] Black is clearly winning.} 30. Kd2 {[%emt 0:00:10]} Kd6 {[%emt 0:01:17]} 31. b4 {[%emt 0:00:20]} Rh3 {[%emt 0:05:55]} 32. Be2 {[%emt 0:01:26]} Rh2 {[%emt 0:00:06]} 33. Ke3 {[%emt 0:00:28] [#]} f4+ $1 {[%emt 0:00:19] Weighted Error Value: White=0.38/Black=0.00 (flawless)   Mistake:       	White=1     	---        Inaccurate:     	White=2     	---        OK:         	White=11    	Black=15     Best:        	White=2     	Black=6      Strong:       	---       	Black=1} 0-1

[Event "SixDays Budapest March GM A 2025"]
[Site "Budapest"]
[Date "2025.03.24"]
[Round "1.4"]
[White "Zia, Tahsin Tajwar"]
[Black "Borgaonkar Akshay"]
[Result "0-1"]
[Annotator "TA"]
[ECO "D15"]
[WhiteElo "2327"]
[BlackElo "2418"]
[PlyCount "122"]
[EventDate "2025.03.23"]
[EventCountry "HUN"]
[SourceTitle "playchess.com"]
[Source "ChessBase"]
[SourceQuality "1"]
[TimeControl "5400+30"]

{[%evp 14,122,-37,-11,4,-21,0,0,0,0,0,0,5,0,10,-10,-2,-10,0,0,8,0,0,0,12,-8,-15,-32,-15,-24,-14,-45,-44,-44,-42,-43,0,0,0,0,0,0,0,-37,0,0,0,-29,-40,-40,-40,-40,-40,-40,-40,-40,-40,-40,0,-370,-139,-648,-648,-648,-648,-644,-644,-632,-636,-639,-626,-639,-603,-595,-524,-463,-205,-205,-205,-205,-205,-205,-205,-1708,-205,-686,-557,-526,-417,-179,-179,-29970,-29971,-29971,-29972,-29976,-29977,-29977,-29978,-29979,-29980,-29980,-29980,-29980,-29981,-29982,-29983,-29983,-29984,-29984,-29985]} 1. d4 {[%emt 0:00:03]} d5 {[%emt 0:00:16]} 2. c4 {[%emt 0:00:27]} c6 {[%emt 0:00:08]} 3. Nf3 {[%emt 0:00:11]} Nf6 {[%emt 0:00:06]} 4. Nc3 {[%emt 0:00:58]} dxc4 {[%emt 0:00:18]} 5. g3 {[%emt 0:00:12]} e6 {[%emt 0:16:29]} 6. Bg2 {[%emt 0:00:22]} b5 {[%emt 0:02:47]} 7. O-O {[%emt 0:00:50]} Bb7 {[%emt 0:03:39]} 8. Ne5 {[%emt 0:02:19]} a6 {[%emt 0:03:21] E04: Open Catalan: 5 Nf3.} 9. a4 {[%emt 0:03:31]} Be7 {[%emt 0:24:56]} 10. axb5 {[%emt 0:01:45]} axb5 {[%emt 0:00:14] The position is equal.} 11. Rxa8 {[%emt 0:00:13]} Bxa8 {[%emt 0:00:04]} 12. Nxb5 {[%emt 0:00:16]} cxb5 {[%emt 0:01:23]} 13. Bxa8 {[%emt 0:00:07]} O-O {[%emt 0:00:46]} 14. Bf3 {[%emt 0:00:42]} Qb6 {[%emt 0:01:58]} 15. e4 {[%emt 0:20:38]} Nbd7 {[%emt 0:10:02]} 16. Be3 {[%emt 0:05:49]} Qa6 {[%emt 0:00:55]} 17. Nxd7 {[%emt 0:26:54]} Nxd7 {[%emt 0:00:06]} 18. e5 $146 {[%emt 0:01:13]} (18. Qc2 Nb6 19. Rd1 Rd8 20. Kg2 b4 21. d5 exd5 22. exd5 Nc8 23. Be2 Nd6 24. Bc5 {½-½ Rozen,E (2435)-Ohanyan,E (2490) EU-ch U18 31st 2023 (5)}) 18... Nb6 {[%emt 0:02:39]} 19. Be4 {[%emt 0:03:21]} Nd5 {[%emt 0:04:47]} 20. Qh5 {[%emt 0:14:55][%csl Ge4][%cal Rh5h7]} (20. Bxd5 {simplifies} exd5 21. f4 f5 22. h3) 20... g6 {[%emt 0:01:07] Successful Defense Black} 21. Qf3 {[%emt 0:05:35]} Nxe3 {[%emt 0:04:17]} (21... Rd8 {keeps more tension.} 22. h4 Qa2 23. Rc1 Kg7) 22. Qxe3 {[%emt 0:00:07]} Rd8 {[%emt 0:00:39]} 23. Kg2 {[%emt 0:03:09]} Qa2 {[%emt 0:03:07]} 24. Rb1 {[%emt 0:00:43]} b4 {[%emt 0:04:41]} 25. h4 {[%emt 0:00:24]} Qa7 {[%emt 0:04:13]} 26. Rd1 {[%emt 0:00:14]} Bc5 {[%emt 0:01:41][%cal Rd8d4]} 27. Qg5 $1 {[%emt 0:00:46]} Qe7 {[%emt 0:01:20]} 28. Qe3 {[%emt 0:03:51][%cal Oe4f3]} Qa7 {[%emt 0:03:40][%cal Rd8d4]} (28... h5 $5) 29. Qg5 $1 {[%emt 0:00:19]} Qe7 {[%emt 0:00:18]} 30. Qe3 {[%emt 0:00:41]} h5 {[%emt 0:02:42]} 31. Bf3 {[%emt 0:01:24]} Bb6 $36 {[%emt 0:00:52][%mdl 2048] Black has the initiative.} 32. Qf4 $1 {[%emt 0:00:13]} c3 {[%emt 0:00:42]} 33. bxc3 {[%emt 0:00:44]} bxc3 {[%emt 0:00:05]} 34. d5 $1 {[%emt 0:02:31]} exd5 {[%emt 0:01:22]} 35. Rxd5 {[%emt 0:01:39]} Rc8 {[%emt 0:01:24]} 36. e6 $2 {[%emt 0:00:45][%mdl 8192]} Qxe6 $2 {[%emt 0:00:28]} (36... c2 $1 $19 {[%cal Rc2c1]} 37. Qc1 Qxe6 (37... fxe6 38. Rd2 $11)) 37. Rd6 $2 {[%emt 0:00:05][%mdl 8192] Loses the game.} (37. Rd1 $17) 37... Bc7 $19 {[%emt 0:00:33]} 38. Rxe6 {[%emt 0:00:53]} Bxf4 {[%emt 0:00:04][%mdl 4096] Endgame KRB-KRB. Black is a pawn up.} 39. Re2 {[%emt 0:00:10]} c2 {[%emt 0:00:06]} 40. Rxc2 {[%emt 0:00:05]} Rxc2 {[%emt 0:00:03]} 41. gxf4 {[%emt 0:00:04] KR-KB} Kg7 {[%emt 0:00:36]} 42. f5 {[%emt 0:00:16]} Kf6 {[%emt 0:00:57]} ({Weaker is} 42... gxf5 43. Bxh5 Kf6 44. Bf3 $17) 43. fxg6 {[%emt 0:00:11]} fxg6 {[%emt 0:00:11]} 44. Be4 {[%emt 0:00:50]} Rb2 {[%emt 0:01:01]} (44... Re2 $142 45. Kg3 Rxe4) 45. Kg3 {[%emt 0:00:11]} Rb3+ {[%emt 0:00:23]} 46. f3 {[%emt 0:01:10]} Ra3 {[%emt 0:00:34]} 47. Kf4 {[%emt 0:00:12]} Ra1 {[%emt 0:00:52]} 48. Bd3 $2 {[%emt 0:00:11]} (48. Kg3) 48... Rg1 {[%emt 0:00:08] Threatens to win with ...g5+.} 49. Be4 $2 {[%emt 0:00:37]} (49. Bb5) 49... Rg2 {[%emt 0:00:43]} 50. Bc6 {[%emt 0:01:21]} g5+ {[%emt 0:00:49]} 51. hxg5+ {[%emt 0:00:05]} Rxg5 {[%emt 0:00:03] ( -> ...h4)} 52. Bb7 $2 {[%emt 0:00:30]} (52. Bd7 $19) 52... h4 $1 {[%emt 0:00:52] Black mates.} 53. Bc8 {[%emt 0:00:30]} Rc5 $1 {[%emt 0:00:27]} 54. Bb7 {[%emt 0:00:34]} Rh5 {[%emt 0:00:54]} 55. Kg4 {[%emt 0:01:17] [#]} Rh7 $1 {[%emt 0:00:05]} 56. Be4 {[%emt 0:00:48] [#]} h3 $1 {[%emt 0:00:07]} 57. f4 {[%emt 0:00:05] [#]} h2 $1 {[%emt 0:00:05]} 58. Bh1 {[%emt 0:00:03]} Rh8 {[%emt 0:00:31]} 59. Kg3 {[%emt 0:00:45]} Kf5 {[%emt 0:00:09]} 60. Kf3 {[%emt 0:00:15]} Rg8 {[%emt 0:00:28]} 61. Bg2 {[%emt 0:00:07]} Rg4 {[%emt 0:00:19] Weighted Error Value: White=0.60/Black=0.14 (very precise)   Loses game:     	White=2     	---        Missed win:     	---       	Black=1      Mistake:       	White=3     	Black=1      Inaccurate:     	White=3     	Black=4      OK:         	White=10    	Black=11     Best:        	White=3     	Black=3      Strong:       	White=4     	Black=1} 0-1